Cogmind - Beta 17.1 @@@ ROGUE MODE // 2026.09.19 @ 02:02:46 Player: C0GU55Y Result: Destroyed by Proton Bomb Trap Performance ------------- Evolutions (3) 1500 Regions Visited (11) 2200 Robots Destroyed (256) 1280 Value Destroyed (8660) 8660 Prototype IDs (33) 660 Alien Tech Used (0) 0 Bonus (6138) 6138 TOTAL SCORE: 20438 Bonus ------- High Alert Combat Kills 3465 Follower Combat Kills 343 Entered Garrisons 600 Used RIF Installer 1500 Aligned with FarCom 300 Friendly Fire -70 Cogmind --------- Core Integrity 0/700 Matter 280/300 Energy 282/290 System Corruption 2% Temperature Cool (4) Movement Treading (240) Ox1 Location -7/Factory Parts ------- > --- POWER (1) -------- Improved Deuterium Engine > --- PROPULSION (3) --- Light Treads Improved Heavy Treads > --- UTILITY (5) ------ Improved Heat Sink Advanced Heat Sink Huge Storage Unit Improved Light Armor Plating Improved Light Armor Plating > --- WEAPON (4) ------- Plasma Rifle Plasma Rifle Gauss Rifle Coil Gun > --- INVENTORY (25) --- Improved Deuterium Engine Light Quantum Reactor Improved Heavy Treads Improved Heavy Treads Light Armored Exoskeleton Improved Heat Sink Advanced Heat Sink Large Storage Unit High-capacity Matter Pod (200) Targeting Computer Improved Light Armor Plating Heavy Laser Gatling Laser Coil Gun Coil Gun Coil Gun Coil Gun Field Lobotomy Kit (3) Chainsword Peak State ------------ > --- POWER ------------ Improved Deuterium Engine > --- PROPULSION ------- Light Treads Improved Heavy Treads > --- UTILITY ---------- Improved Heat Sink Advanced Heat Sink Huge Storage Unit Gravity Neutralizer Improved Light Armor Plating > --- WEAPON ----------- Plasma Rifle Plasma Rifle Flak Gun Coil Gun > --- INVENTORY -------- Improved Deuterium Engine Light Quantum Reactor Improved Heavy Treads Light Armored Exoskeleton Improved Heat Sink Large Storage Unit High-capacity Matter Pod Improved Light Armor Plating Heavy Laser Gatling Laser Coil Gun Coil Gun Coil Gun Coil Gun Field Lobotomy Kit Chainsword [Rating: 64] Favorites ----------- Power Improved Deuterium Engine Engine Improved Deuterium Engine Power Core Light Nuclear Core Reactor Light Antimatter Reactor Propulsion Light Treads Treads Light Treads Leg Light Armored Exoskeleton Wheel Compact Wheel Utility Large Storage Unit Device Improved Heat Sink Storage Large Storage Unit Processor Improved Targeting Computer Protection Improved Light Armor Plating Weapon Heavy Assault Rifle Energy Gun Plasma Rifle Energy Cannon Beam Cannon Ballistic Gun Heavy Assault Rifle Ballistic Cannon Gauss Cannon Launcher Heavy Missile Launcher Special Weapon Field Lobotomy Kit Slashing Weapon Chainsword Build | -11 -10 -10 -10 -9 -8 -8 -8 -8 -7 -7 -7 ------- Run | Yrd Mat Min Exi Min Mat Gar Mat Gar Fac Gar Fac Slots Evolved 6 | . . . . . 4 . . . 2 . . Power . | . . . . . . . . . . . . Propulsion 1 | . . . . . 1 . . . . . . Utility 3 | . . . . . 2 . . . 1 . . Weapon 2 | . . . . . 1 . . . 1 . . Parts Attached 159 | 7 4 . 1 3 39 5 10 15 35 39 1 Power 20 | 1 1 . 1 1 3 2 2 1 5 3 . Engine 14 | 1 . . 1 1 3 1 1 . 4 2 . Core 5 | . 1 . . . . 1 1 1 1 . . Reactor 1 | . . . . . . . . . . 1 . Propulsion 31 | 2 . . . 1 10 . 3 4 4 7 . Treads 19 | 1 . . . . 8 . 2 4 . 4 . Leg 2 | . . . . . . . . . 1 1 . Wheel 10 | 1 . . . 1 2 . 1 . 3 2 . Hover . | . . . . . . . . . . . . Flight . | . . . . . . . . . . . . Utility 47 | 2 1 . . . 10 . 2 4 13 15 . Device 23 | 1 . . . . 2 . 2 1 7 10 . Storage 4 | 1 1 . . . . . . . 2 . . Processor 1 | . . . . . . . . . . 1 . Hackware . | . . . . . . . . . . . . Protection 19 | . . . . . 8 . . 3 4 4 . Artifact . | . . . . . . . . . . . . Weapon 61 | 2 2 . . 1 16 3 3 6 13 14 1 Energy Gun 22 | 1 1 . . . 9 . . 1 7 3 . Energy Cannon 2 | . 1 . . . . . . 1 . . . Ballistic Gun 29 | 1 . . . . 6 2 2 2 4 11 1 Ballistic Cannon 3 | . . . . . . . 1 1 1 . . Launcher 3 | . . . . 1 . 1 . 1 . . . Special Weapon 1 | . . . . . 1 . . . . . . Impact Weapon . | . . . . . . . . . . . . Slashing Weapon 1 | . . . . . . . . . 1 . . Piercing Weapon . | . . . . . . . . . . . . Special Melee Weapon . | . . . . . . . . . . . . Unidentified Prototypes 10 | . . . . . 4 . . . 5 1 . Parts Lost 48 | . 2 . . . 2 . 1 7 15 21 . Power 2 | . . . . . . . . . 1 1 . Propulsion 9 | . . . . . . . 1 . 3 5 . Utility 16 | . . . . . 1 . . 4 4 7 . Weapon 21 | . 2 . . . 1 . . 3 7 8 . Highest Loss Streak 8 | . 2 . . . 1 . 1 3 6 8 . To Critical Strikes . | . . . . . . . . . . . . Average Backups 14 | 3 10 14 13 15 14 15 14 14 13 15 19 Power 1 | . 1 3 1 1 1 1 1 1 1 1 2 Propulsion 2 | 1 3 4 4 3 2 2 1 2 3 2 3 Utility 3 | . 1 2 2 3 4 4 4 2 2 3 6 Weapon 6 | . 2 5 6 6 5 7 7 7 6 6 7 Tool/Special . | . . . . . . . . . . . . Unused Backups 39 | . . 1 . . 8 2 2 2 4 7 13 Power 10 | . . . . . 1 . . 2 3 2 2 Propulsion 6 | . . . . . 1 . . . 1 2 2 Utility 6 | . . . . . 1 1 1 . . . 3 Weapon 17 | . . 1 . . 5 1 1 . . 3 6 Tool/Special . | . . . . . . . . . . . . Average Slot Usage (%) 94 | . 99 100 100 100 99 100 99 96 89 86 92 Engine 6 | . 7 . 13 14 9 7 . 3 5 6 7 Core 1 | . 6 14 . . . 1 8 5 1 . . Treads 11 | . 14 14 14 14 17 18 18 18 3 6 15 Leg 1 | . . . . . . . . . 5 3 . Wheel 7 | . 14 14 14 14 9 9 8 9 6 3 . Device 13 | . 14 14 14 14 11 9 9 8 15 16 15 Storage 8 | . 14 14 14 14 9 9 9 9 7 7 7 Protection 11 | . . . . . 15 18 18 15 10 8 15 Energy Gun 9 | . 9 . . . 13 8 . 1 10 12 15 Energy Cannon 2 | . 4 14 14 14 2 . . 1 . . . Ballistic Gun 13 | . 14 14 14 12 11 18 18 14 9 16 15 Ballistic Cannon 3 | . . . . . . . 8 8 8 . . Peak Build Rating 64 | 7 10 10 10 9 33 32 34 34 46 64 63 Average Rating 32 | 5 8 10 8 9 25 31 32 29 38 48 63 On Entrance 22 | . 7 10 10 9 9 31 32 32 24 44 63 Avg Prop Armor Cover (%) 10 | 12 12 12 12 12 10 13 12 10 9 7 . Naked Turns . | . . . . . . . . . . . . Heaviest Build 115 | 13 31 31 29 31 54 46 52 56 70 115 115 Greatest Support 95 | 16 16 16 16 16 40 40 40 40 40 95 95 Greatest Overweight (x) 6 | . 1 1 1 3 4 2 3 3 6 5 1 Average Overweight (x) 2 | . . 1 1 2 2 1 2 2 3 2 1 Largest Inventory Capacity 25 | 8 15 15 15 15 15 15 15 15 25 25 25 Average Capacity 15 | 7 14 15 15 15 15 15 15 15 15 17 25 Most Carried 23 | 5 13 15 15 15 15 15 15 15 15 23 23 Average Carried 14 | 3 10 14 13 14 14 14 14 14 14 16 22 Final Capacity 25 | 8 15 15 15 15 15 15 15 15 15 25 25 Final Carried 23 | 5 13 15 15 15 15 15 15 15 15 23 22 Class Distribution -------------------- 32% | Scavenger-Tank 27% | Tank 23% | Scavenger-Skirmisher 13% | Mutant 3% | Skirmisher Dominant Class ---------------- Mutant | -10/Materials Mutant | -10/Mines Mutant | -10/Exiles Mutant | -9/Mines Tank | -8/Materials Scavenger-Tank | -8/Garrison Scavenger-Tank | -8/Materials Scavenger-Tank | -8/Garrison Scavenger-Skirmisher | -7/Factory Scavenger-Tank | -7/Garrison Scavenger-Tank | -7/Factory Resources | -11 -10 -10 -10 -9 -8 -8 -8 -8 -7 -7 -7 ----------- Run | Yrd Mat Min Exi Min Mat Gar Mat Gar Fac Gar Fac Matter Collected 6353 | 285 99 12 10 112 752 390 574 598 2248 1273 . Remotely . | . . . . . . . . . . . . Salvage Created 9337 | 84 420 76 . 188 1877 840 193 845 2867 1947 . Parts 506 | 5 28 3 . 12 111 43 14 45 159 86 . Haulers Intercepted 7 | . . . . . 2 . . . 5 . . Recyclers Shooed 5 | . . . . . 3 . . . 2 . . Parts Field Recycled . | . . . . . . . . . . . . Retrieved Matter . | . . . . . . . . . . . . Parts Self-Destructed . | . . . . . . . . . . . . Prevented . | . . . . . . . . . . . . Parts Restored . | . . . . . . . . . . . . Kills | -11 -10 -10 -10 -9 -8 -8 -8 -8 -7 -7 -7 ------- Run | Yrd Mat Min Exi Min Mat Gar Mat Gar Fac Gar Fac Combat Hostiles Destroyed 192 | . 10 2 . 5 31 21 4 21 61 37 . Guns 126 | . 7 1 . . 26 17 3 14 28 30 . Cannons 31 | . 1 1 . 2 3 . 1 7 16 . . AOE 34 | . 2 . . 3 2 4 . . 17 6 . Classes Destroyed 16 | 2 5 . . 1 3 1 1 1 2 . . Worker 18 | . 1 . . . 3 . . . 14 . . Builder 10 | . 1 . . . . . 2 . 7 . . Tunneler 7 | 1 . . . . 2 . . . 4 . . Hauler 7 | . . . . . 2 . . . 5 . . Recycler 14 | 1 . . . . 5 . . . 8 . . Mechanic 1 | . . . . . . . 1 . . . . Operator 1 | . . . . . . . . . 1 . . Watcher 6 | . 1 . . . 4 1 . . . . . Swarmer 50 | . 3 . . . 11 6 . 3 10 17 . Grunt 83 | . 7 2 . 4 9 8 1 5 42 5 . Brawler 6 | . . . . 1 1 . . 1 1 2 . Duelist 3 | . . . . . . 1 . . 1 1 . Protector 1 | . . . . . . . . . 1 . . Sentry 36 | . . . . . 9 6 . 8 2 11 . Hunter 6 | . . . . . 1 . 3 . 1 1 . Programmer 6 | . . . . . . . . 3 3 . . Thug 1 | . . . . . . . . 1 . . . Best Kill Streak 16 | 1 8 2 . 3 6 8 2 7 16 7 . Combat Bots Only 12 | . 7 2 . 3 5 8 2 7 12 7 . Max Kills in Single Turn 6 | 1 3 1 . 2 2 2 2 1 6 2 . Gunslinging 1 | . . . . . . 1 . . 1 1 . Exploded 2 | . 2 . . 2 1 2 . . 2 2 . Melee . | . . . . . . . . . . . . Uniques/NPCs Destroyed . | . . . . . . . . . . . . Combat | -11 -10 -10 -10 -9 -8 -8 -8 -8 -7 -7 -7 -------- Run | Yrd Mat Min Exi Min Mat Gar Mat Gar Fac Gar Fac Hostile Shots Fired 1117 | . 29 5 . 11 111 44 31 133 284 469 . Missed 324 | . 5 2 . 7 33 10 9 25 86 147 . Hits 793 | . 24 3 . 4 78 34 22 108 198 322 . Melee 8 | . . . . . . 1 . 4 1 2 . Projectile 785 | . 24 3 . 4 78 33 22 104 197 320 . Critical Strikes 17 | . . . . . 2 1 . 6 4 4 . Damage Taken 10920 | . 319 40 . 61 1443 535 384 1792 3263 3053 30 Core 1216 | . 38 16 . 15 226 32 34 132 262 431 30 Absorbed by Shields . | . . . . . . . . . . . . Core Remaining (%) 64 | 100 . . . 72 . . . 22 . . . Volleys Fired 491 | 5 23 4 . 8 87 46 24 48 139 107 . Largest 4 | 2 2 2 . 2 3 3 3 3 4 4 . Hottest 215 | 60 80 80 . 90 136 96 91 137 215 210 . Shots Fired 1392 | 10 45 8 . 14 251 86 67 121 459 331 . Gun 1114 | 10 44 4 . 4 221 76 44 67 318 326 . Cannon 238 | . 1 4 . 7 28 . 23 52 123 . . Launcher 38 | . . . . 3 . 10 . 2 18 5 . Special 2 | . . . . . 2 . . . . . . Kinetic 791 | 5 23 4 . 4 108 40 67 89 275 176 . Thermal 398 | . 1 4 . 7 100 . . . 147 139 . Explosive 38 | . . . . 3 . 10 . 2 18 5 . Electromagnetic 163 | 5 21 . . . 41 36 . 30 19 11 . Robot Hit Streak 26 | 2 7 5 . 3 26 16 7 17 12 22 . Robot Miss Streak 14 | 2 2 1 . 2 6 5 5 4 14 10 . Penetration Max 1 | . . . . . . . 1 1 1 1 . Secondary Targets 14 | . . . . . 2 2 . 1 4 5 . Max Gunslinging Chain 1 | . . . . . 1 1 . 1 1 1 . Shots Hit Robots 847 | 5 31 6 . 6 154 51 37 59 279 219 . Core Hits 633 | 3 18 4 . 7 82 46 11 34 277 151 . Critical Kills 2 | . . . . . . . . . . 2 . Critical Parts Destroyed 6 | . . . . . 2 . . 2 . 2 . Critical Strikes 35 | . 1 . . . 8 . 1 7 9 9 . Burn 14 | . . . . . 6 . . . 3 5 . Destroy 8 | . . . . . 2 . . 2 . 4 . Blast 11 | . . . . . . . 1 5 5 . . Corrupt 2 | . 1 . . . . . . . 1 . . Melee Attacks 1 | . . . . . . . . . 1 . . Impact . | . . . . . . . . . . . . Slashing 1 | . . . . . . . . . 1 . . Piercing . | . . . . . . . . . . . . Sneak Attacks . | . . . . . . . . . . . . Combat Hostiles . | . . . . . . . . . . . . Follow-up Attacks . | . . . . . . . . . . . . Damage Inflicted 21757 | 65 647 97 . 246 2743 1370 693 1755 8855 5286 . Guns 13493 | 65 431 27 . 13 2115 805 390 767 4239 4641 . Cannons 3251 | . 17 70 . 52 404 . 303 731 1674 . . Explosions 4992 | . 199 . . 181 213 565 . 257 2932 645 . Melee . | . . . . . . . . . . . . Ramming 21 | . . . . . 11 . . . 10 . . Kinetic 9109 | 37 208 27 . 13 847 291 693 1219 3271 2503 . Thermal 6525 | . 216 70 . 52 1382 . . 54 2643 2108 . Explosive 4273 | . . . . 181 . 565 . 203 2761 563 . Electromagnetic 1829 | 28 223 . . . 503 514 . 279 170 112 . Impact . | . . . . . . . . . . . . Slashing . | . . . . . . . . . . . . Piercing . | . . . . . . . . . . . . Highest Corruption 9 | . . . . . . . . 9 . 2 2 Average Corruption 3 | . . . . . . . . 8 . 2 2 Corruption Purged . | . . . . . . . . . . . . Corruption Blocked . | . . . . . . . . . . . . Effects 53 | . . . . . . . . 21 . 27 5 Message Errors 13 | . . . . . . . . 3 . 9 1 Matter Fused 15 | . . . . . . . . 7 . 7 1 Heat Flow Errors 6 | . . . . . . . . 3 . 3 . Energy Discharges 2 | . . . . . . . . . . 2 . Parts Rejected 1 | . . . . . . . . 1 . . . Data Loss (minor) 7 | . . . . . . . . 1 . 3 3 Data Loss (major) 3 | . . . . . . . . 2 . 1 . Misfires 2 | . . . . . . . . 2 . . . Alerts 1 | . . . . . . . . 1 . . . Weapon Failures 3 | . . . . . . . . 1 . 2 . Overload Shots . | . . . . . . . . . . . . Overflow Damage 358 | . . . . . 91 24 2 12 176 53 . Projectiles 48 | . . . . . 6 . 2 3 37 . . Explosions 310 | . . . . . 85 24 . 9 139 53 . Melee . | . . . . . . . . . . . . Knockbacks 45 | . . . . . 1 . 4 2 38 . . Impact 1 | . . . . . 1 . . . . . . Kinetic 42 | . . . . . . . 4 2 36 . . Secondary 2 | . . . . . . . . . 2 . . Self-Inflicted Damage 911 | . 45 . . 14 306 97 . 136 310 3 . Shots 19 | . 1 . . 1 5 2 . 3 6 1 . Rammed 3 | . . . . . 2 . . . 1 . . Targets Rammed 3 | . . . . . 2 . . . 1 . . Kicked . | . . . . . . . . . . . . Crushed . | . . . . . . . . . . . . Highest Temperature 446 | 20 122 111 . 106 33 3 . 295 446 383 . Average Temperature 79 | 20 38 58 . 48 7 1 . 71 61 117 . Received Heat Transfer 3231 | . 117 24 . 27 315 108 54 522 1305 759 . Effects 13 | . . . . . . . . 4 3 6 . Shutdowns 1 | . . . . . . . . . 1 . . Energy Bleed 3 | . . . . . . . . 1 1 1 . Interference 7 | . . . . . . . . 3 . 4 . Matter Decay 1 | . . . . . . . . . 1 . . Short Circuit 1 | . . . . . . . . . . 1 . Siege Activations . | . . . . . . . . . . . . Martial Activations . | . . . . . . . . . . . . Shielding Activations . | . . . . . . . . . . . . Robots Disrupted 1 | . . . . . . 1 . . . . . Combat Hostiles 1 | . . . . . . 1 . . . . . Robots Corrupted . | . . . . . . . . . . . . Combat Hostiles . | . . . . . . . . . . . . Parts Fried 2 | . . . . . . . . 1 1 . . Impact Corruptions . | . . . . . . . . . . . . Robots Melted 2 | . . . . . . . . . . 2 . Combat Hostiles 1 | . . . . . . . . . . 1 . Parts Melted 22 | . . 1 . . 4 . . . 2 15 . Heat Transferred 13135 | . 187 148 . 111 3247 . . 100 4266 5076 . Parts Sabotaged . | . . . . . . . . . . . . Parts Stolen . | . . . . . . . . . . . . Parts Stripped . | . . . . . . . . . . . . Power Chain Reactions 7 | . 1 . . . 4 . . 1 . 1 . Alert | -11 -10 -10 -10 -9 -8 -8 -8 -8 -7 -7 -7 ------- Run | Yrd Mat Min Exi Min Mat Gar Mat Gar Fac Gar Fac Maximum Alert Level 5 | . 1 . . . 2 4 3 3 5 5 4 Low Security (%) 25 | 100 87 100 . 100 65 . . . 3 . . Level 1 11 | . 12 . . . 22 4 . . 25 . . Level 2 15 | . . . . . 12 22 71 30 23 . . Level 3 19 | . . . . . . 55 28 69 28 . 61 Level 4 10 | . . . . . . 18 . . 10 26 38 Level 5 17 | . . . . . . . . . 9 73 . High Security . | . . . . . . . . . . . . Max Security . | . . . . . . . . . . . . Peak Influence 2174 | 5 227 104 . 111 536 1198 723 1083 1699 2174 1141 Initial 1181 | . . 64 . . . 343 583 427 568 1181 1141 Average 777 | 1 83 52 . 44 185 814 666 793 779 1717 1080 Influence Increases 6703 | 10 372 50 . 131 1076 855 298 726 1982 1203 . Destroy 0b10 Robot/C 3920 | . 200 40 . 100 640 440 120 520 1200 660 . Destroy 0b10 Robot/NC 369 | 10 15 . . . 80 5 30 . 205 24 . Destroy Leader 624 | . 52 10 . 20 182 20 54 20 228 38 . Allied During Kill 80 | . . . . . 6 18 30 19 1 6 . Successful Hack 138 | . 24 . . . 21 35 11 14 16 17 . Disable Machine 300 | . 15 . . . 90 15 30 30 120 . . Anti-Garrison Action 450 | . . . . . . 100 . 50 . 300 . Destroy Structure 525 | . 6 . . 11 42 117 23 43 152 131 . Lose Combat Pursuer 297 | . 60 . . . 15 105 . 30 60 27 . Influence Decreases 5692 | 10 205 217 . 131 547 186 839 300 1377 717 1163 Entered New Map 3189 | . . 103 . . . 186 615 230 515 507 1033 Time Decay 1943 | 10 185 114 . 131 507 . 214 . 652 . 130 Lost Part 480 | . 20 . . . 20 . 10 70 150 210 . Lost Ally 80 | . . . . . 20 . . . 60 . . Squads Dispatched 29 | . 2 . . . 3 . 6 . 18 . . Investigation 5 | . 2 . . . 1 . 1 . 1 . . Extermination 3 | . . . . . . . . . 3 . . Reinforcement 16 | . . . . . 2 . 4 . 10 . . Assault 4 | . . . . . . . . . 4 . . Garrison 1 | . . . . . . . 1 . . . . Intercept . | . . . . . . . . . . . . Searches Triggered . | . . . . . . . . . . . . Construction Impeded 6 | . . . . . . . . . 6 . . Haulers Reinforced 2 | . . . . . . . . . 2 . . Active Scanning Responses . | . . . . . . . . . . . . Cargo Convoy Interrupts . | . . . . . . . . . . . . Stealth | -11 -10 -10 -10 -9 -8 -8 -8 -8 -7 -7 -7 --------- Run | Yrd Mat Min Exi Min Mat Gar Mat Gar Fac Gar Fac Distress Signals 14 | . 1 . . . 2 1 3 . 7 . . Communications Jammed . | . . . . . . . . . . . . Distress Signals . | . . . . . . . . . . . . Times Spotted 247 | . 13 2 . 5 46 26 10 23 81 41 . Peak Tracking Total 10 | . 8 2 . 3 7 6 4 6 10 7 . Tactical Retreats 12 | . 2 . . . 1 3 . 1 3 2 . Traps | -11 -10 -10 -10 -9 -8 -8 -8 -8 -7 -7 -7 ------- Run | Yrd Mat Min Exi Min Mat Gar Mat Gar Fac Gar Fac Traps Triggered 30 | . 1 . . . 1 2 1 11 2 11 1 Indirectly . | . . . . . . . . . . . . Trap Hack Attempts . | . . . . . . . . . . . . Triggered . | . . . . . . . . . . . . Disarmed 6 | . . . . . 6 . . . . . . Reprogrammed . | . . . . . . . . . . . . Reused . | . . . . . . . . . . . . Traps Extracted . | . . . . . . . . . . . . Installed . | . . . . . . . . . . . . Triggered . | . . . . . . . . . . . . Machines | -11 -10 -10 -10 -9 -8 -8 -8 -8 -7 -7 -7 ---------- Run | Yrd Mat Min Exi Min Mat Gar Mat Gar Fac Gar Fac Machines Disabled 24 | . 1 . . . 6 5 2 2 8 . . Max in Single Turn 6 | . 1 . . . 3 2 1 1 6 . . Phase Generator 1 | . . . . . . 1 . . . . . Machines Repaired . | . . . . . . . . . . . . Machines Dismantled . | . . . . . . . . . . . . Machines Sabotaged . | . . . . . . . . . . . . Overloaded Fab Kills . | . . . . . . . . . . . . Hacking | -11 -10 -10 -10 -9 -8 -8 -8 -8 -7 -7 -7 --------- Run | Yrd Mat Min Exi Min Mat Gar Mat Gar Fac Gar Fac Machines Accessed 32 | . 4 . 1 1 10 3 4 3 3 2 1 Terminals 23 | . 4 . . . 7 3 3 3 1 2 . Fabricators 1 | . . . . . . . . . . . 1 Repair Stations . | . . . . . . . . . . . . Recycling Units . | . . . . . . . . . . . . Scanalyzers 3 | . . . . . 2 . . . 1 . . Garrison Access 3 | . . . . . 1 . 1 . 1 . . Total Hacks 66 | . 9 . 1 1 27 3 7 6 7 4 1 Successful 33 | . 4 . 1 1 11 3 3 2 5 2 1 Failed 32 | . 5 . . . 15 . 4 4 2 2 . Catastrophic 5 | . 2 . . . 2 . . 1 . . . Database Lockouts 1 | . . . . . 1 . . . . . . Manual 17 | . 2 . 1 . 14 . . . . . . Terminals 53 | . 9 . . . 22 3 6 6 3 4 . Fabricators 1 | . . . . . . . . . . . 1 Repair Stations . | . . . . . . . . . . . . Recycling Units . | . . . . . . . . . . . . Scanalyzers 5 | . . . . . 2 . . . 3 . . Garrison Access 5 | . . . . . 3 . 1 . 1 . . Terminal Hacks 25 | . 4 . 1 1 9 3 2 2 1 2 . Robot Analysis 3 | . 1 . . . 2 . . . . . . Open Door 3 | . . . . 1 . 1 . . . 1 . Branch Access Points 2 | . . . . . 1 . 1 . . . . Emergency Access Points 3 | . . . . . . 1 . 1 . 1 . Terminal Index 1 | . . . . . 1 . . . . . . Alert Level 1 | . . . . . 1 . . . . . . Locate Traps 2 | . 1 . . . . . 1 . . . . Disarm Traps 2 | . . . . . 2 . . . . . . Security Status 1 | . 1 . . . . . . . . . . Investigation Status 1 | . . . . . 1 . . . . . . Hauler Manifests 2 | . . . . . 1 . . . 1 . . Registered Components 1 | . 1 . . . . . . . . . . Garrison Registry 2 | . . . . . . 1 . 1 . . . Proto ID Catalog 1 | . . . 1 . . . . . . . . Fabricator Hacks 1 | . . . . . . . . . . . 1 Build 1 | . . . . . . . . . . . 1 Repair Station Hacks . | . . . . . . . . . . . . Recycling Unit Hacks . | . . . . . . . . . . . . Scanalyzer 3 | . . . . . . . . . 3 . . Retrieve Study 3 | . . . . . . . . . 3 . . Garrison Access Hacks 3 | . . . . . 1 . 1 . 1 . . Unlock Access 3 | . . . . . 1 . 1 . 1 . . Unauthorized Hacks 1 | . . . . . 1 . . . . . . Terminals 1 | . . . . . 1 . . . . . . Botnet 1 | . . . . . 1 . . . . . . Fabricators . | . . . . . . . . . . . . Repair Stations . | . . . . . . . . . . . . Recycling Units . | . . . . . . . . . . . . Scanalyzers . | . . . . . . . . . . . . Garrison Access . | . . . . . . . . . . . . Data Cores Recovered . | . . . . . . . . . . . . Used . | . . . . . . . . . . . . Hacking Detections 19 | . 3 . . . 6 . 3 3 2 1 1 Full Trace Events 3 | . 1 . . . . . . 1 1 . . Feedback Events . | . . . . . . . . . . . . Feedback Blocked . | . . . . . . . . . . . . Robot Schematics Acquired . | . . . . . . . . . . . . Robots Built 2 | . . . . . . . . . . . 2 Authchips . | . . . . . . . . . . . . Time 116 | . . . . . . . . . . . 116 Total Robot Build Rating 6 | . . . . . . . . . . . 6 Part Schematics Acquired . | . . . . . . . . . . . . Parts Built . | . . . . . . . . . . . . Authchips . | . . . . . . . . . . . . Time . | . . . . . . . . . . . . Total Part Build Rating . | . . . . . . . . . . . . Part Studies Acquired 3 | . . . . . . . . . 3 . . Parts Repaired . | . . . . . . . . . . . . Time . | . . . . . . . . . . . . Parts Recycled . | . . . . . . . . . . . . Recycled Matter . | . . . . . . . . . . . . Retrieved Matter . | . . . . . . . . . . . . Retrieved Components . | . . . . . . . . . . . . Parts Scanalyzed . | . . . . . . . . . . . . Part Schematics Acquired . | . . . . . . . . . . . . Parts Damaged . | . . . . . . . . . . . . Bothacking | -11 -10 -10 -10 -9 -8 -8 -8 -8 -7 -7 -7 ------------ Run | Yrd Mat Min Exi Min Mat Gar Mat Gar Fac Gar Fac Used RIF Installer 3 | . . . . . . 1 . 1 . 1 . Threat Obfuscator 1 | . . . . . . . . . . 1 . Robot Detection 1 | . . . . . . . . 1 . . . Robots Hacked . | . . . . . . . . . . . . Non-combat . | . . . . . . . . . . . . Combat . | . . . . . . . . . . . . Robot Hacks Applied . | . . . . . . . . . . . . Relay Couplers Released . | . . . . . . . . . . . . Fabnet Peak Effective % . | . . . . . . . . . . . . Robots Rewired 5 | . . . . . . . . 3 . 2 . Allies Hacked 1 | . . . . . . . . . 1 . . Hacks Repelled . | . . . . . . . . . . . . Allies | -11 -10 -10 -10 -9 -8 -8 -8 -8 -7 -7 -7 -------- Run | Yrd Mat Min Exi Min Mat Gar Mat Gar Fac Gar Fac Total Allies 12 | . . . . . 1 2 . 3 . 4 2 Largest Group 5 | . . . . . 1 2 2 3 3 3 5 Highest-Rated Group 223 | . . . . . 90 70 70 71 71 181 223 Highest-Rated Ally 90 | . . . . . 90 39 39 39 31 80 80 Total Orders . | . . . . . . . . . . . . Ally Attacks 84 | . . . . . 5 11 45 9 5 9 . Total Damage 1199 | . . . . . 221 150 591 158 20 59 . Kills 15 | . . . . . 1 1 5 5 1 2 . Allies Corrupted . | . . . . . . . . . . . . Allies Melted 1 | . . . . . 1 . . . . . . Field Lobotomies 1 | . . . . . 1 . . . . . . Intel | -11 -10 -10 -10 -9 -8 -8 -8 -8 -7 -7 -7 ------- Run | Yrd Mat Min Exi Min Mat Gar Mat Gar Fac Gar Fac Active Infowar (turns) 2042 | 8 498 248 286 341 661 . . . . . . Seismic 2042 | 8 498 248 286 341 661 . . . . . . Robot Analysis Total 2 | . 1 . . . 1 . . . . . . Derelict Logs Recovered . | . . . . . . . . . . . . Drone Launches . | . . . . . . . . . . . . Drone Recoveries . | . . . . . . . . . . . . Exploration | -11 -10 -10 -10 -9 -8 -8 -8 -8 -7 -7 -7 ------------- Run | Yrd Mat Min Exi Min Mat Gar Mat Gar Fac Gar Fac Turns Passed 10926 | 80 498 248 286 341 2353 676 459 1020 2413 2292 260 Spaces Moved 5678 | 51 311 199 245 254 1316 380 274 492 1213 880 63 Core 3 | 3 . . . . . . . . . . . Treads 336 | . . . . . 7 11 4 30 1 220 63 Legs 327 | . . . . . . . . . 51 276 . Wheels 5012 | 48 311 199 245 254 1309 369 270 462 1161 384 . Hover . | . . . . . . . . . . . . Flight . | . . . . . . . . . . . . Fastest Speed 50 | 50 100 115 115 115 125 130 130 130 130 120 240 Average Speed 147 | 97 114 115 115 121 141 133 132 146 147 198 240 Slowest Speed 320 | 100 115 115 115 125 240 250 250 245 250 320 240 Overloaded Moves . | . . . . . . . . . . . . Propulsion Burnouts . | . . . . . . . . . . . . Robots Hopped . | . . . . . . . . . . . . Potential Cave-ins . | . . . . . . . . . . . . Cave-ins Triggered . | . . . . . . . . . . . . Exploration Rate (%) 49 | 3 46 59 61 63 94 64 32 48 35 89 3 Regions Visited 11 Branch Regions 3 Pre-discovered Areas . | . . . . . . . . . . . . Known Exits Taken 3 | . . . . . 1 . 1 . 1 . . Unknown Exits Taken 5 | 1 1 1 1 1 . . . . . . . Scrap Searched 3 | . . 1 . 2 . . . . . . . Spaces Dug 1 | . . . . . . . . . 1 . . Terrain Destroyed 561 | . 5 . . 16 40 201 13 13 190 83 . Melee 1 | . . . . . . . . . 1 . . Projectile 35 | . . . . . . . 13 2 14 6 . AOE 524 | . 5 . . 16 40 201 . 11 175 76 . Terrain Rammed . | . . . . . . . . . . . . Walls Destroyed . | . . . . . . . . . . . . Machines Disabled . | . . . . . . . . . . . . Actions | -11 -10 -10 -10 -9 -8 -8 -8 -8 -7 -7 -7 --------- Run | Yrd Mat Min Exi Min Mat Gar Mat Gar Fac Gar Fac Total 7201 | 68 408 212 249 270 1626 474 323 692 1517 1188 174 Wait 454 | . 61 6 . . 114 21 . 57 47 39 109 Move 5670 | 50 310 198 244 253 1316 379 274 491 1213 879 63 Hop . | . . . . . . . . . . . . Pick Up 99 | 6 9 3 2 1 19 3 4 6 21 25 . Fast Attach 75 | 6 . . . . 17 2 3 3 22 22 . Attach 41 | 1 2 . . . 7 . 1 5 12 13 . Detach 1 | . . . . . . . . . . 1 . Swap 99 | . 2 . 1 6 20 12 6 11 26 14 1 Drop 139 | . 1 1 2 2 44 7 11 7 35 28 1 Fire 491 | 5 23 4 . 8 87 46 24 48 139 107 . Melee 1 | . . . . . . . . . 1 . . Ram 3 | . . . . . 2 . . . 1 . . Kick . | . . . . . . . . . . . . Crush . | . . . . . . . . . . . . Escape Stasis 78 | . . . . . . 4 . 30 . 44 . Rewire 50 | . . . . . . . . 34 . 16 . Trap . | . . . . . . . . . . . . Miscellaneous . | . . . . . . . . . . . . Route ------- -11/Scrapyard -10/Materials (discovered 2 exits: [*Mat] / [*Min]) -10/Mines (discovered 2 exits: [*Mat] / *Exi) -10/Exiles -9/Mines -8/Materials (discovered 4 exits: *Fac x3 / Gar) -8/Garrison (discovered 3 exits: *Mat x3) -8/Materials (discovered 2 exits: *Fac / Gar) -8/Garrison (discovered 3 exits: *Fac x3) -7/Factory (discovered 2 exits: [*Fac] / Gar) -7/Garrison (discovered 3 exits: *Fac x3) -7/Factory History --------- Turn | Location | Event 19 | -11/Scrapyard | Discovered new exit (range 16) 81 | -11/Scrapyard | Entered Materials 311 | -10/Materials | Build established: Mutant 442 | -10/Materials | Destroyed 7 combat bots 450 | -10/Materials | Discovered new exit (range 11) 516 | -10/Materials | Discovered new exit (range 8) 579 | -10/Materials | Entered Mines 579 | -10/Mines | Discovered new exit (range 14) 603 | -10/Mines | Met a Derelict bent on vengeance 822 | -10/Mines | Deemed a non-threat by the Exiles lab entrance 822 | -10/Mines | Discovered new exit (range 5) 827 | -10/Mines | Entered Exiles 859 | -10/Exiles | Met 8R-AWN 877 | -10/Exiles | Met EX-HEX 917 | -10/Exiles | Met EX-BIN 930 | -10/Exiles | Aligned with FarCom system 931 | -10/Exiles | Given EX-Vault access code 959 | -10/Exiles | Opened EX-Vault 968 | -10/Exiles | Found Field Lobotomy Kit 993 | -10/Exiles | Warned to stay clear of 0b10 Research branches 1026 | -10/Exiles | Met EX-DEC 1100 | -10/Exiles | Discovered new exit (range 12) 1113 | -10/Exiles | Left Exiles lab with Field Lobotomy Kit 1113 | -10/Exiles | Entered Mines 1327 | -9/Mines | Met a Derelict who couldn't figure out how to use a Trap Extractor 1447 | -9/Mines | Discovered new exit (range 5) 1454 | -9/Mines | Entered Materials 1454 | -8/Materials | Evolved 4 slots: Propulsion x1, Utility x2, Weapon x1 1761 | -8/Materials | Build established: Skirmisher 1815 | -8/Materials | Discovered new exit (range 14) 2104 | -8/Materials | Build established: Scavenger-Skirmisher 2263 | -8/Materials | Discovered new exit (range 7) 2526 | -8/Materials | Build established: Tank 2970 | -8/Materials | Central database locked down 3507 | -8/Materials | Assimilated H-61 Shepherd with FLK Orb 3688 | -8/Materials | Discovered new exit (range 12) 3807 | -8/Materials | Identified exit to Garrison 3807 | -8/Materials | Entered Garrison 3836 | -8/Garrison | Phase Generator disabled 3899 | -8/Garrison | Installed Relay Interface Framework 3968 | -8/Garrison | Triggered checkpoint 4009 | -8/Garrison | Destroyed 8 combat bots 4047 | -8/Garrison | Triggered checkpoint 4071 | -8/Garrison | Triggered checkpoint 4155 | -8/Garrison | Rescued a captive Derelict 4158 | -8/Garrison | Rescued a captive Derelict 4245 | -8/Garrison | Discovered new exit (range 14) 4327 | -8/Garrison | Triggered checkpoint 4424 | -8/Garrison | Discovered new exit (range 67) 4424 | -8/Garrison | Discovered new exit (range 36) 4424 | -8/Garrison | Discovered new exit (range 81) 4440 | -8/Garrison | Build established: Scavenger-Tank 4483 | -8/Garrison | Entered Materials 4483 | -8/Materials | Accompanied by 2 allies 4498 | -8/Materials | Garrison activated, responded to threat 4508 | -8/Materials | Core integrity fell below 50% 4925 | -8/Materials | Discovered new exit (range 11) 4942 | -8/Materials | Identified exit to Garrison 4942 | -8/Materials | Entered Garrison 4942 | -8/Garrison | Accompanied by 2 allies 4977 | -8/Garrison | Expanded RIF knowledge: Robot Detection 4992 | -8/Garrison | Triggered checkpoint 5192 | -8/Garrison | Triggered checkpoint 5196 | -8/Garrison | Triggered checkpoint 5207 | -8/Garrison | Build established: Tank 5211 | -8/Garrison | Triggered checkpoint 5231 | -8/Garrison | P-60 Hacker assimilated allied 0Q-048(g) 5289 | -8/Garrison | Destroyed 7 combat bots 5357 | -8/Garrison | Discovered new exit (range 13) 5434 | -8/Garrison | Lost 3 parts (2u1w) 5512 | -8/Garrison | Triggered checkpoint 5721 | -8/Garrison | Discovered new exit (range 80) 5721 | -8/Garrison | Discovered new exit (range 55) 5721 | -8/Garrison | Discovered new exit (range 25) 5732 | -8/Garrison | Triggered checkpoint 5962 | -8/Garrison | Entered Factory 5962 | -7/Factory | Accompanied by 3 allies 5962 | -7/Factory | Evolved 2 slots: Utility x1, Weapon x1 6143 | -7/Factory | Build established: Scavenger-Skirmisher 6357 | -7/Factory | Lost 3 allies 6638 | -7/Factory | Build established: Scavenger-Tank 6960 | -7/Factory | Build established: Tank 7089 | -7/Factory | Destroyed 9 combat bots 7833 | -7/Factory | Discovered new exit (range 15) 7962 | -7/Factory | First assault squad dispatched 8051 | -7/Factory | Destroyed 12 combat bots 8146 | -7/Factory | Lost 6 parts (1p2n1u2w) 8375 | -7/Factory | Identified exit to Garrison 8375 | -7/Factory | Entered Garrison 8464 | -7/Garrison | Triggered checkpoint 8497 | -7/Garrison | Build established: Scavenger-Skirmisher 8586 | -7/Garrison | Core integrity fell below 50% 8689 | -7/Garrison | Triggered checkpoint 8744 | -7/Garrison | Destroyed 7 combat bots 8793 | -7/Garrison | Lost 8 parts (2n3u3w) 8887 | -7/Garrison | Expanded RIF knowledge: Threat Obfuscation 8913 | -7/Garrison | Discovered new exit (range 12) 8969 | -7/Garrison | Triggered checkpoint 9149 | -7/Garrison | Triggered checkpoint 9190 | -7/Garrison | Triggered checkpoint 9197 | -7/Garrison | Core integrity fell below 20% 9258 | -7/Garrison | Lost 8 parts (1p2n2u3w) 9438 | -7/Garrison | Triggered checkpoint 9693 | -7/Garrison | Discovered new exit (range 14) 9959 | -7/Garrison | Triggered checkpoint 9979 | -7/Garrison | Discovered new exit (range 11) 10006 | -7/Garrison | Build established: Scavenger-Tank 10295 | -7/Garrison | Triggered checkpoint 10640 | -7/Garrison | Found embedded Infiltrators 10667 | -7/Garrison | Entered Factory 10667 | -7/Factory | Accompanied by 3 allies 10858 | -7/Factory | Fabricated H-55 Commando (x2) 10927 | -7/Factory | Destroyed by Proton Bomb Trap Last Messages --------------- controls... RIF authorized. LOCATION=UNKNOWN GOAL=ESCAPE 10667_ Receiving FarCom transmissions... 10673_ 5%GCUW=BLCJXBKDGAQRAGE9LKK3ZYTO 10742_ Connecting with Fabricator... 10742_ Current location identified: Factory >>Build Building H-55 Commando... ETC: 116 10756_ System corrupted: Matter fused (-10). 10820_ System corrupted: Component data lost. 10858_ Fabricator completes H-55 Commando. 10858_ System corrupted: Component data lost. 10886_ Dropped Flak Gun. 10927_ Triggered Proton Bomb Trap. 10927_ A bubble of electromagnetic force engulfs the area. Map ----- +----------------------------------------------------+ | ????????????????????????????? ??????????????????## | | ????????????????????????????? ?????????????######T | | ????????????????????????????? ?????????????# | | ????????????????????????????# #????????????# | | ????????????????????????????# #????????????# | | ????????????????????????????# #????????????# | | ????????????????????????????# #????????????# | | ????????????????????????????# #????????????# # | | ????????????????????????????# #?????####+### # | | ????????????????????????????# #?????# # | | ????????????????????????????# #?????# # | | ???????????????????????######+####### + | | ???????????????????????# # # | | ???????????????????????#[] """" # # | | ???????????????????????# "F " # ######+# | | ???????????????????????# """ # # # | | ???????????????????????# k""" # # # | | ???????????????????????# """ ! + + # | | ???????????????????????# x # # # | | ???????????????????????# """ """ # # """" # | | ???????????????????????# h""" """ # #?"""" # | | ???????????????????????# """ """ # #?"""" # | | ???????????????????????# hx # #??"""?? | | ???????????????????????# h # #??""??? | | ???????????????????????##/########### #??????? | | ????????????????????????#@ #??????? | | ????????????????????????# #??????? | | ????????????????????????# """ #??????? | | ????????????????????????# ""F"" #??????? | | ????????????????????????# "" "" #??????? | | ???????????????????????? ?? #??????? | | ???????????????????????? k ! ? #??????? | | ???????????????????????? """""""""? ???????? | | ???????????????????????? ????????????? | | ???????????????????????? ??????????????? | | ???????????????????????? ???????????????? | | ???????????????????????? ????????????????? | | ???????????????????????? u""" """ ???????????????? | | ???????????????????????? """ "??????????????????? | | ???????????????????????? ??? ???????????????????? | | ???????????????????????? ???????????????????????? | | ?????????????????????????????????????????????????? | | ?????????????????????????????????????????????????? | | ?????????????????????????????????????????????????? | | ?????????????????????????????????????????????????? | | ?????????????????????????????????????????????????? | | ?????????????????????????????????????????????????? | | ?????????????????????????????????????????????????? | | ?????????????????????????????????????????????????? | | ?????????????????????????????????????????????????? | +----------------------------------------------------+ Best States ------------- Heat Dissipation 70 Energy Generation 21 Energy Capacity 310 Matter Stores 300 Matter Capacity 300 Sight Range 16 Terrain Scan Density 10 Additional Mass Support 12 Armor Coverage 525 Phase Shifting 15 Evasion (%) 55 Targeting Accuracy 6 Recoil Reduction 3 Item Schematics ----------------- None Robot Schematics ------------------ None Fabricated ------------ H-55 Commando | x2 | -7/Factory | Preloaded Repaired ---------- Nothing Studied --------- Com. Wheel | -7/Factory | Hacked Wheel | -7/Factory | Hacked Gauss Cannon | -7/Factory | Hacked Alien Tech Used ----------------- None Achievements -------------- None Challenges ------------ None Game ------ Seed RiotAlloyDisintegrator Manual? 0 Play Time 01:34:27 Cumulative 151.1 hours Start 2026.09.17 @ 10:08:56 End 2026.09.19 @ 02:02:46 Sessions 7 Manual Loads 0 Difficulty Rogue Special Mode None Game No. 161 Rogue 161 Adventurer 0 Explorer 0 Win Type - Total 0 Types 0/0/0/0/0/0/0/0/0/0 Lore% 66 Gallery% 54 Achievement% 39 Wizard Run 0 Options --------- Layout 1 ASCII 0 Keyboard 0 Movement Mouse Keybinds 0 Fullscreen 1 Font 24/Smallcaps Map View 50x35 Zoom Use 0% Tactical HUD 1 Map Filters NONE Filters NONE Steam 1 RUN: 0816ce40-a345-4274-9fe2-4f761c503add